bitfinex-derivatives/quotes_SOLF0:USTF0_20250609
["timestamp","ask_amount","ask_price","bid_price","bid_amount"]
[1749507286692,0.04405639,159.24,159.2,6.32241782]
[1749507287294,6.2776,159.23,159.2,0.04421782]
[1749507287595,0.04405639,159.24,159.21,5.2198819]
[1749507288294,0.04405639,159.24,159.22,6.2776]
[1749507288495,0.04405639,159.24,159.21,5.2198819]
[1749507288689,0.04405639,159.24,159.21,11.4977819]
[1749507289294,0.04405639,159.24,159.22,6.2777]
[1749507290899,0.04405639,159.24,159.23,6.2773]
[1749507291498,0.04405639,159.24,159.23,11.4971819]
[1749507291697,0.04405639,159.24,159.23,5.2198819]
[1749507292190,0.04405639,159.24,159.23,11.4971819]
[1749507292495,2.1905,159.29,159.23,5.2198819]
[1749507292696,8.4657,159.29,159.23,5.2198819]
[1749507292894,8.4657,159.29,159.25,6.2763]
[1749507293198,8.4657,159.29,159.25,11.4961819]
[1749507293496,8.50671349,159.29,159.25,11.53973659]
[1749507293898,6.2754,159.28,159.25,11.53973659]
[1749507294397,6.276,159.27,159.25,5.26343659]
[1749507294894,6.276,159.27,159.25,0.04355469]
[1749507295094,6.2761,159.26,159.25,0.04355469]
[1749507295503,6.2776,159.23,159.21,35.22]
[1749507295895,5.2198819,159.27,159.21,35.22]
[1749507296100,6.2777,159.22,159.21,35.22]
[1749507296301,5.2198819,159.25,159.18,35.22]
[1749507296501,0.04148485,159.23,159.2,0.0410776]
[1749507296800,6.31908485,159.23,159.2,0.0410776]
[1749507297305,0.04148485,159.23,159.21,5.2198819]
[1749507297798,0.04148485,159.23,159.21,11.4977819]
[1749507299205,0.04148485,159.23,159.21,5.2198819]
[1749507299403,0.04148485,159.23,159.2,0.0410776]
[1749507300001,0.04148485,159.23,159.21,5.2198819]
[1749507300904,0.04148485,159.23,159.21,11.4977819]
[1749507301304,0.04148485,159.23,159.21,5.2198819]
[1749507302505,0.04148485,159.23,159.2,0.0410776]
[1749507303005,6.2779,159.22,159.2,0.0410776]
[1749507303602,0.04148485,159.23,159.2,0.0410776]
[1749507303809,5.26136675,159.23,159.2,0.0410776]
[1749507304004,4.4074,159.22,159.2,0.0410776]
[1749507304204,5.2198819,159.21,159.17,35.22]
[1749507304605,6.2783,159.21,159.18,6.2793]
[1749507305107,6.2783,159.21,159.17,5.2198819]
[1749507305308,6.2787,159.2,159.18,0.04013443]
[1749507306613,6.31975445,159.21,159.18,0.04013443]
[1749507306907,0.04145445,159.21,159.18,0.04013443]
[1749507307113,6.2788,159.2,159.18,0.04013443]
[1749507307514,0.04145445,159.21,159.18,0.04013443]
[1749507308008,0.04145445,159.21,159.19,5.2198819]
[1749507309310,0.04145445,159.21,159.19,11.4985819]
[1749507309715,0.04145445,159.21,159.19,5.2198819]
[1749507310015,6.31965445,159.21,159.19,5.2198819]
[1749507310416,0.04145445,159.21,159.19,5.2198819]
[1749507311510,0.04145445,159.21,159.2,6.2785]
[1749507311713,0.04145445,159.21,159.19,5.2198819]
[1749507312317,0.04145445,159.21,159.19,11.4984819]
[1749507312516,0.04145445,159.21,159.19,5.2198819]
[1749507313516,0.04145445,159.21,159.2,6.2785]
[1749507314215,0.04145445,159.21,159.19,11.4985819]
[1749507314621,6.31965445,159.21,159.19,11.4985819]
[1749507314919,0.04145445,159.21,159.19,11.4985819]
[1749507315420,0.04145445,159.21,159.19,5.2198819]
[1749507315614,0.04145445,159.21,159.18,0.04013443]
[1749507316014,4.48985445,159.21,159.18,0.04013443]
[1749507316417,2.19855445,159.21,159.18,5.26001633]
[1749507316618,0.04145445,159.21,159.19,6.2788]
[1749507316821,0.04145445,159.21,159.18,5.26001633]
[1749507317220,6.2788,159.2,159.18,5.26001633]
[1749507317421,0.04145445,159.21,159.18,0.04013443]
[1749507317910,6.2787,159.2,159.18,0.04013443]
[1749507318218,0.04145445,159.21,159.18,0.04013443]
[1749507318823,6.2789,159.19,159.18,0.04013443]
[1749507319316,6.2789,159.19,159.15,361.78]
[1749507319317,6.2802,159.16,159.13,41.3811]
[1749507319816,5.2198819,159.17,159.13,35.1]
[1749507320017,6.2805,159.15,159.11,11.5016819]
[1749507320226,0.04501242,159.15,159.11,11.52173816]
[1749507320621,6.32581242,159.15,159.11,11.52173816]
[1749507320822,0.04501242,159.15,159.11,11.52173816]
[1749507321124,5.26489432,159.15,159.11,0.02005626]
[1749507322527,6.2817,159.12,159.11,0.02005626]
[1749507322821,0.04501242,159.15,159.11,0.02005626]
[1749507323021,6.281,159.14,159.11,0.02005626]
[1749507323323,0.04501242,159.15,159.11,0.02005626]
[1749507323622,6.2815,159.13,159.11,0.02005626]
[1749507324220,5.2198819,159.14,159.11,0.02005626]
[1749507324420,6.2817,159.12,159.11,0.02005626]
[1749507325126,6.2825,159.1,159.08,35.1]
[1749507325320,5.2198819,159.12,159.08,35.1]
[1749507325724,6.2828,159.09,159.06,6.2839]
[1749507326223,6.2835,159.08,159.05,40.3198819]
[1749507327020,6.32274639,159.09,159.05,46.6042819]
[1749507327319,6.32274639,159.09,159.05,40.3198819]
[1749507327526,0.03974639,159.09,159.06,6.2838]
[1749507327727,35.1,159.19,159.07,5.2198819]
[1749507328018,5.2198819,159.17,159.11,5.2198819]
[1749507328225,6.2808,159.15,159.11,11.5018819]
[1749507328625,6.32634914,159.15,159.11,11.54162829]
[1749507328925,5.26543104,159.15,159.11,0.03974639]
[1749507329525,6.2812,159.14,159.11,0.03974639]
[1749507331029,6.2813,159.13,159.11,0.03974639]
[1749507332029,5.26543104,159.15,159.11,0.03974639]
[1749507332429,6.2815,159.13,159.11,0.03974639]
[1749507333229,6.281,159.14,159.11,0.03974639]
[1749507333431,5.26543104,159.15,159.11,0.03974639]
[1749507334332,6.2817,159.12,159.11,0.03974639]
[1749507334534,5.2198819,159.13,159.08,35.1]
[1749507334831,2.0805,159.12,159.05,46.6040819]
[1749507335027,2.0805,159.12,159.05,46.6240819]
[1749507335633,0.04609621,159.1,159.05,46.6240819]
[1749507335934,6.2835,159.08,159.05,40.3398819]
[1749507336335,0.04609621,159.1,159.05,35.12]
[1749507336531,0.04609621,159.1,159.05,41.4041]
[1749507336934,6.2829,159.09,159.05,41.4041]
[1749507337330,6.2829,159.09,159.06,11.5037819]
[1749507338839,6.2833,159.08,159.06,5.2198819]
[1749507339136,0.04609621,159.1,159.05,35.12]
[1749507339433,0.04609621,159.1,159.05,40.3398819]
[1749507339727,0.04609621,159.1,159.07,5.2198819]
[1749507339934,0.04609621,159.1,159.09,11.5027819]
[1749507340727,0.04609621,159.1,159.09,5.2198819]
[1749507341239,0.04609621,159.1,159.09,11.5026819]
[1749507341737,0.04609621,159.1,159.09,46.6226819]
[1749507342533,0.04609621,159.1,159.07,5.2198819]
[1749507343540,0.04609621,159.1,159.09,5.2198819]
[1749507343743,0.04609621,159.1,159.09,11.5027819]
[1749507346252,0.04609621,159.1,159.09,5.2198819]
[1749507346750,0.04609621,159.1,159.06,40.3398819]
[1749507347140,6.32879621,159.1,159.08,5.2198819]
[1749507347749,6.32879621,159.1,159.08,11.5030819]
[1749507348050,0.04609621,159.1,159.08,5.2198819]
[1749507348350,0.04609621,159.1,159.09,6.2828]
[1749507352353,0.04609621,159.1,159.08,6.2832]
[1749507352549,0.04609621,159.1,159.08,5.2198819]
[1749507353654,0.04609621,159.1,159.09,6.2828]
[1749507355151,0.04609621,159.1,159.08,5.2198819]
[1749507355358,0.04609621,159.1,159.08,6.2831]
[1749507355550,0.04609621,159.1,159.06,40.3398819]
[1749507355853,6.32879621,159.1,159.07,6.2834]
[1749507356150,0.04609621,159.1,159.06,40.3398819]
[1749507356362,0.04609621,159.1,159.06,35.12]
[1749507356654,0.04609621,159.1,159.07,5.2198819]
[1749507356852,0.04609621,159.1,159.09,6.2828]
[1749507357656,0.04609621,159.1,159.08,6.2831]
[1749507359157,6.32869621,159.1,159.07,6.2834]
[1749507359556,6.32869621,159.1,159.07,11.5032819]
[1749507359756,0.04609621,159.1,159.08,6.2831]
[1749507360257,0.04609621,159.1,159.07,5.2198819]
[1749507360457,0.04609621,159.1,159.09,11.5026819]
[1749507361053,34.98,159.21,159.09,5.2198819]
[1749507361257,34.98,159.21,159.14,5.2198819]
[1749507361457,9.5387819,159.22,159.14,5.2198819]
[1749507361867,6.2789,159.19,159.16,11.4995819]
[1749507362049,0.04125375,159.2,159.16,5.26597811]
[1749507362253,6.31995375,159.2,159.17,6.2794]
[1749507362453,0.04125375,159.2,159.16,5.26597811]
[1749507362655,0.04125375,159.2,159.16,0.04609621]
[1749507362954,6.2797,159.17,159.16,0.04609621]
[1749507365361,6.2809,159.14,159.13,34.98]
[1749507365563,5.2198819,159.16,159.1,34.98]
[1749507365757,6.2811,159.14,159.11,6.2818]
[1749507365952,5.2198819,159.16,159.1,34.98]
[1749507366162,5.2198819,159.14,159.1,34.98]
[1749507366362,6.2816,159.13,159.1,34.98]
[1749507366862,5.26528883,159.14,159.1,34.98]
[1749507367458,6.2815,159.13,159.1,41.2624]
[1749507367658,0.04540693,159.14,159.1,34.98]
[1749507367957,5.26528883,159.14,159.1,34.98]
[1749507368263,6.2815,159.13,159.1,34.98]
[1749507368764,5.26528883,159.14,159.1,34.98]
[1749507369464,6.2815,159.13,159.1,41.2624]
[1749507369863,0.04540693,159.14,159.1,34.98]
[1749507370067,6.32640693,159.14,159.11,6.2818]
[1749507370366,0.04540693,159.14,159.1,34.98]
[1749507370566,6.2813,159.13,159.1,41.2624]
[1749507370763,6.2813,159.13,159.1,34.98]
[1749507370967,6.32650693,159.14,159.11,6.282]
[1749507371271,0.04540693,159.14,159.11,5.2198819]
[1749507371465,0.04540693,159.14,159.13,11.5011819]
[1749507371659,9.5387819,159.22,159.15,5.2198819]
[1749507371862,9.5387819,159.22,159.15,40.1998819]
[1749507372268,4.3189,159.22,159.17,5.2198819]
[1749507372665,0.04459152,159.21,159.18,6.32440693]
[1749507372861,4.5109,159.26,159.19,5.2198819]
[1749507373167,4.5109,159.26,159.19,40.1998819]
[1749507373368,8.67428174,159.24,159.19,34.98]
[1749507373758,6.2785,159.21,159.19,34.98]
[1749507373963,0.04669639,159.22,159.19,34.98]
[1749507374162,0.04669639,159.22,159.18,0.04540693]
[1749507374468,6.2789,159.19,159.18,0.04540693]
[1749507382075,0.04669639,159.22,159.18,0.04540693]
[1749507382579,6.2784,159.21,159.18,0.04540693]
[1749507382778,0.04669639,159.22,159.18,0.04540693]
[1749507383481,6.2787,159.2,159.18,0.04540693]
[1749507383682,0.04669639,159.22,159.18,0.04540693]
[1749507383884,0.04669639,159.22,159.18,8.71968867]
[1749507385273,0.04669639,159.22,159.2,6.2782]
[1749507385577,0.04669639,159.22,159.18,8.71968867]
[1749507385771,0.04669639,159.22,159.18,0.04540693]
[1749507386173,8.67428174,159.21,159.18,0.04540693]
[1749507386383,10.77868174,159.21,159.14,34.84]
[1749507386884,6.2797,159.17,159.14,34.84]
[1749507387285,10.77868174,159.21,159.14,34.84]
[1749507387482,0.04515032,159.17,159.14,43.55887326]
[1749507387982,0.04515032,159.17,159.14,34.88459152]
[1749507388283,0.04515032,159.17,159.14,43.55887326]
[1749507388484,0.04515032,159.17,159.14,49.83957326]
[1749507388686,0.04515032,159.17,159.14,43.55887326]
[1749507389085,0.04515032,159.17,159.15,6.2802]
[1749507389887,0.04515032,159.17,159.16,6.2801]
[1749507390583,8.67428174,159.24,159.18,6.2792]
[1749507390786,36.9148,159.25,159.16,8.67428174]
[1749507390987,6.2783,159.21,159.16,8.67428174]
[1749507391487,6.2783,159.21,159.18,6.2793]
[1749507391687,6.31876161,159.21,159.18,6.32695278]
[1749507391988,0.04046161,159.21,159.18,0.04765278]
[1749507392176,0.04046161,159.21,159.18,34.88765278]
[1749507393487,6.2789,159.2,159.18,34.88765278]
[1749507393986,0.04046161,159.21,159.18,34.88765278]
[1749507394689,6.2785,159.2,159.18,34.88765278]
[1749507394991,0.04046161,159.21,159.18,34.88765278]
[1749507395385,6.31886161,159.21,159.18,34.88765278]
[1749507396189,6.31886161,159.21,159.18,41.16685278]
[1749507396393,0.04046161,159.21,159.19,5.20623221]
[1749507397692,0.04046161,159.21,159.2,6.2785]
[1749507399489,40.04623221,159.28,159.23,6.2772]
[1749507399691,5.20623221,159.28,159.22,5.20623221]
[1749507399993,6.2767,159.25,159.22,5.20623221]
[1749507400290,6.2767,159.25,159.22,11.48373221]
[1749507400487,6.31675381,159.25,159.22,11.52843177]
[1749507400689,4.4433,159.31,159.24,5.20623221]
[1749507400887,5.20623221,159.37,159.23,361.72]
[1749507401086,11.66753221,159.37,159.3,5.20623221]
[1749507401391,15.12532632,159.37,159.29,6.275]
[1749507401686,0.04812179,159.35,159.29,6.275]
[1749507401890,6.274,159.32,159.31,0.04126379]
[1749507403093,8.66402632,159.33,159.26,34.84]
[1749507403994,6.2752,159.29,159.28,0.04107466]
[1749507404288,0.04816296,159.31,159.28,0.04107466]
[1749507404690,6.2747,159.3,159.28,0.04107466]
[1749507404891,0.04816296,159.31,159.28,0.04107466]
[1749507405194,6.275,159.29,159.28,0.04107466]
[1749507406293,0.04816296,159.31,159.28,0.04107466]
[1749507406692,0.04816296,159.31,159.3,6.2746]
[1749507406888,0.04816296,159.31,159.3,40.9946]
[1749507407090,6.4613,159.37,159.3,34.72]
[1749507407290,4.2428,159.37,159.32,8.66402632]
[1749507407593,2.0805,159.37,159.32,8.66402632]
[1749507408094,6.31930088,159.36,159.33,0.042274]
[1749507409995,6.2727,159.35,159.33,0.042274]
[1749507410797,6.273,159.34,159.33,0.042274]
[1749507412395,0.04710088,159.36,159.33,0.042274]
[1749507412596,0.04710088,159.36,159.33,6.315474]
[1749507412796,6.2726,159.35,159.33,0.042274]
[1749507414199,6.273,159.34,159.33,0.042274]
[1749507414598,0.04710088,159.36,159.33,0.042274]
[1749507415100,6.2728,159.35,159.33,0.042274]
[1749507415298,0.04710088,159.36,159.33,0.042274]
[1749507415599,6.31950088,159.36,159.33,6.315374]
[1749507415799,0.04710088,159.36,159.34,8.66402632]
[1749507415988,0.04710088,159.36,159.33,0.042274]
[1749507416794,6.31940088,159.36,159.33,6.315374]
[1749507416995,0.04710088,159.36,159.33,0.042274]
[1749507417195,126.02338512,159.42,159.34,43.36402632]
[1749507417394,6.2703,159.41,159.38,6.2713]
[1749507418194,6.30994587,159.41,159.38,6.31709502]
[1749507420093,0.03964587,159.41,159.39,6.271]
[1749507420999,6.30994587,159.41,159.38,41.01709502]
[1749507421202,0.03964587,159.41,159.38,34.74579502]
[1749507421599,0.03964587,159.41,159.38,41.01699502]
[1749507422600,4.3396,159.46,159.39,8.66402632]
[1749507422806,2.2237,159.46,159.41,8.66402632]
[1749507423005,8.66402632,159.48,159.42,34.7]
[1749507423300,8.66402632,159.48,159.41,34.7]
[1749507423496,6.2691,159.44,159.43,0.04006105]
[1749507423699,0.04270758,159.46,159.43,0.04006105]
[1749507423903,0.04270758,159.46,159.43,8.70408737]
[1749507424505,0.04270758,159.46,159.44,6.2687]
[1749507425001,0.04270758,159.46,159.43,0.04006105]
[1749507425404,6.2687,159.45,159.43,0.04006105]
[1749507425701,0.04270758,159.46,159.43,0.04006105]
[1749507426405,6.2691,159.44,159.43,0.04006105]
[1749507428604,6.2691,159.44,159.38,34.68]
[1749507428605,4.3612,159.45,159.38,34.68]
[1749507428801,36.8937,159.49,159.42,8.66402632]
[1749507429002,6.2683,159.46,159.42,8.66402632]
[1749507429199,2.2137,159.49,159.42,8.66402632]
[1749507429403,2.2137,159.49,159.44,6.2688]
[1749507429607,0.04137595,159.48,159.45,0.04290277]
[1749507429807,0.04137595,159.48,159.46,8.66402632]
[1749507430102,0.04137595,159.48,159.46,14.93202632]
[1749507430306,0.04137595,159.48,159.46,8.66402632]
[1749507430507,0.04137595,159.48,159.47,6.2679]
[1749507432209,6.266,159.52,159.46,43.34402632]
[1749507432507,6.266,159.52,159.48,8.66402632]
[1749507432906,6.266,159.52,159.49,6.267]
[1749507433108,6.2664,159.51,159.49,0.04234679]
[1749507433705,6.2663,159.51,159.49,0.04234679]
[1749507434710,6.3125405,159.52,159.49,6.30924679]
[1749507435206,0.0464405,159.52,159.51,6.2663]
[1749507436107,0.0464405,159.52,159.5,43.22402632]
[1749507436108,0.0464405,159.52,159.5,49.49052632]
[1749507436309,0.0464405,159.52,159.5,34.56]
[1749507436710,0.0464405,159.52,159.49,0.04234679]
[1749507437213,6.2667,159.5,159.49,0.04234679]
[1749507438608,6.268,159.47,159.44,34.56]
[1749507438805,10.81922632,159.51,159.44,34.56]
[1749507439216,6.2677,159.48,159.44,43.22402632]
[1749507439607,2.1552,159.51,159.44,49.53294241]
[1749507439811,6.31020579,159.48,159.44,49.53294241]
[1749507440012,0.04260579,159.48,159.44,43.26414241]
[1749507440207,0.04260579,159.48,159.44,34.60011609]
[1749507440412,0.04260579,159.48,159.45,8.66402632]
[1749507440715,0.04260579,159.48,159.46,6.268]
[1749507441115,0.04260579,159.48,159.45,8.66402632]
[1749507441314,0.04260579,159.48,159.47,6.2679]
[1749507441516,0.04260579,159.48,159.47,14.93192632]
[1749507441909,0.04260579,159.48,159.47,8.66402632]
[1749507442912,0.04260579,159.48,159.47,14.93192632]
[1749507444114,10.89402632,159.55,159.49,6.267]
[1749507444517,6.2661,159.52,159.49,6.267]
[1749507444719,2.23,159.55,159.49,8.66402632]
[1749507444910,2.23,159.55,159.5,6.2665]
[1749507445111,6.2657,159.53,159.51,0.04413454]
[1749507445618,6.2659,159.52,159.51,0.04413454]
[1749507446016,0.03969704,159.54,159.51,0.04413454]
[1749507446218,6.2657,159.53,159.51,0.04413454]
[1749507447116,6.2659,159.52,159.51,0.04413454]
[1749507447316,0.03969704,159.54,159.51,0.04413454]
[1749507448118,6.30499704,159.54,159.51,6.31043454]
[1749507449021,6.30499704,159.54,159.51,0.04413454]
[1749507449619,0.03969704,159.54,159.51,0.04413454]
[1749507450019,6.2671,159.49,159.48,34.56]
[1749507450320,8.66402632,159.52,159.45,34.54]
[1749507450815,8.66402632,159.48,159.42,34.54]
[1749507451011,8.66402632,159.48,159.43,0.04236825]
[1749507451210,8.66402632,159.48,159.44,0.04280306]
[1749507451211,6.269,159.45,159.44,0.04280306]
[1749507452523,6.2685,159.46,159.44,0.04280306]
[1749507452719,0.04290471,159.47,159.44,0.04280306]
[1749507452919,2.21970471,159.47,159.44,0.04280306]
[1749507453118,6.2687,159.45,159.44,0.04280306]
[1749507455221,13.18949555,159.46,159.4,34.54]
[1749507455625,6.2701,159.42,159.4,34.54]
[1749507455819,13.18949555,159.46,159.4,34.54]
[1749507456221,0.04158528,159.45,159.41,0.04596968]
[1749507457923,6.2698,159.42,159.41,0.04596968]
[1749507458320,6.2691,159.44,159.41,0.04596968]
[1749507458732,0.04158528,159.45,159.41,0.04596968]
[1749507459327,6.2691,159.44,159.41,0.04596968]
[1749507459530,0.04158528,159.45,159.41,0.04596968]
[1749507459827,6.2694,159.44,159.41,34.60596968]
[1749507460025,8.69438083,159.45,159.41,34.60596968]
[1749507460530,6.2695,159.43,159.41,34.60596968]
[1749507461226,6.2693,159.44,159.41,34.60596968]
[1749507462629,6.31038528,159.45,159.41,34.60596968]
[1749507463127,6.31038528,159.45,159.41,40.87606968]
[1749507463329,0.04158528,159.45,159.41,34.60596968]
[1749507464429,6.2695,159.43,159.41,34.60596968]
[1749507464625,0.04158528,159.45,159.41,34.60596968]
[1749507465129,6.2694,159.44,159.41,34.60596968]
[1749507465330,0.04158528,159.45,159.41,34.60596968]
[1749507465729,6.2698,159.42,159.41,34.60596968]
[1749507465921,6.2698,159.42,159.41,0.04596968]
[1749507466522,6.2696,159.43,159.41,0.04596968]
[1749507466727,0.04158528,159.45,159.41,0.04596968]
[1749507467734,0.04158528,159.45,159.41,6.31616968]
[1749507468034,0.04158528,159.45,159.41,0.04596968]
[1749507468629,6.31028528,159.45,159.41,6.31586968]
[1749507468927,6.31028528,159.45,159.41,0.04596968]
[1749507469731,6.31028528,159.45,159.42,6.2698]
[1749507471935,0.04158528,159.45,159.43,34.46]
[1749507473334,0.04158528,159.45,159.44,5.1887427]
[1749507473538,0.04158528,159.45,159.44,11.4578427]
[1749507473936,0.04158528,159.45,159.44,5.1887427]
[1749507474636,0.04158528,159.45,159.44,11.4578427]
[1749507475940,2.1786,159.51,159.46,5.1887427]
[1749507476237,5.1887427,159.54,159.47,34.44]
[1749507476434,7.3489427,159.54,159.47,34.44]
[1749507476738,6.2665,159.51,159.49,0.0440296]
[1749507476936,0.04215047,159.52,159.49,0.0440296]
[1749507477433,6.2665,159.51,159.49,0.0440296]
[1749507477638,0.04215047,159.52,159.49,0.0440296]
[1749507477639,5.23089317,159.52,159.49,0.0440296]
[1749507478137,6.2667,159.5,159.49,0.0440296]
[1749507478339,5.1887427,159.5,159.46,34.44]
[1749507478638,6.2672,159.49,159.46,34.44]
[1749507478939,5.1887427,159.5,159.46,34.44]
[1749507479237,6.2672,159.49,159.46,34.44]
[1749507479438,6.2672,159.49,159.46,40.75419751]
[1749507480538,5.1887427,159.51,159.46,34.48599751]
[1749507480734,5.1887427,159.51,159.46,0.04599751]
[1749507480936,5.1887427,159.49,159.46,0.04599751]
[1749507481237,6.2679,159.47,159.46,0.04599751]
[1749507481437,0.04738753,159.48,159.46,0.04599751]
[1749507482440,6.31508753,159.48,159.46,0.04599751]
[1749507483131,6.2679,159.47,159.46,0.04599751]
[1749507484339,6.2691,159.44,159.43,34.44]
[1749507484547,7.4744427,159.47,159.4,34.44]
[1749507485547,0.04777163,159.45,159.42,0.04338407]
[1749507485749,6.2695,159.43,159.42,0.04338407]
[1749507487847,6.2692,159.44,159.42,0.04338407]
[1749507488038,0.04777163,159.45,159.42,0.04338407]
[1749507488244,39.6287427,159.54,159.44,5.1887427]
[1749507488444,6.2667,159.5,159.46,5.1887427]
[1749507488647,6.2667,159.5,159.46,39.6487427]
[1749507489148,6.2671,159.49,159.46,39.6487427]
[1749507489343,0.04566683,159.49,159.46,39.69209426]
[1749507489850,0.04566683,159.49,159.47,6.2678]
[1749507490349,10.7916,159.53,159.49,6.2668]
[1749507490548,4.5261,159.53,159.49,6.2668]
[1749507491152,2.2679,159.53,159.5,5.1887427]
[1749507491352,0.04651124,159.53,159.5,5.2330196]
[1749507492150,0.04651124,159.53,159.5,11.4994196]
[1749507492349,0.04651124,159.53,159.5,5.2330196]
[1749507492549,0.04651124,159.53,159.51,6.2661]
[1749507493047,0.04651124,159.53,159.5,11.4995196]
[1749507493353,0.04651124,159.53,159.5,5.2330196]
[1749507493551,0.04651124,159.53,159.5,39.6730196]
[1749507493751,0.04651124,159.53,159.51,6.266]
[1749507493951,0.04651124,159.53,159.5,39.6730196]
[1749507494747,0.04651124,159.53,159.51,6.266]
[1749507495359,0.04651124,159.53,159.51,6.2663]
[1749507496048,0.04651124,159.53,159.51,11.4550427]
[1749507496449,0.04651124,159.53,159.52,6.2659]
[1749507496953,0.04651124,159.53,159.51,11.4549427]
[1749507497149,0.04651124,159.53,159.5,34.4842769]
[1749507497349,0.04651124,159.53,159.5,39.6730196]
[1749507497545,0.04651124,159.53,159.5,34.4842769]
[1749507498454,6.31231124,159.53,159.5,34.4842769]
[1749507498953,6.31231124,159.53,159.5,40.7509769]
[1749507499254,6.31231124,159.53,159.5,34.4842769]
[1749507501857,0.04651124,159.53,159.5,34.4842769]
[1749507502058,0.04651124,159.53,159.5,0.0442769]
[1749507502255,5.23525394,159.53,159.5,0.0442769]
[1749507502459,0.04651124,159.53,159.5,0.0442769]
[1749507503058,6.2661,159.52,159.5,0.0442769]
[1749507503658,6.2663,159.51,159.5,0.0442769]
[1749507506866,6.266,159.52,159.5,0.0442769]
[1749507508569,6.2663,159.51,159.5,0.0442769]
[1749507511073,0.04651124,159.53,159.5,5.2330196]
[1749507511774,6.31231124,159.53,159.5,11.4994196]
[1749507512076,0.04651124,159.53,159.5,5.2330196]
[1749507512371,0.04651124,159.53,159.5,0.0442769]
[1749507512972,6.2663,159.51,159.5,0.0442769]
[1749507513173,5.1887427,159.51,159.41,361.06]
[1749507513375,6.4805,159.5,159.43,5.1887427]
[1749507513673,6.2673,159.49,159.45,11.4573427]
[1749507514176,6.31260532,159.49,159.45,11.49785604]
[1749507514376,6.31260532,159.49,159.46,6.2681]
[1749507515075,0.04530532,159.49,159.45,5.22925604]
[1749507515578,6.2676,159.48,159.45,5.22925604]
[1749507516978,6.2676,159.48,159.45,11.49785604]
[1749507517480,0.04530532,159.49,159.45,5.22925604]
[1749507517680,0.04530532,159.49,159.46,6.2679]
[1749507518380,0.04530532,159.49,159.45,0.04051334]
[1749507518682,5.23404802,159.49,159.45,0.04051334]
[1749507518979,6.2683,159.46,159.45,0.04051334]
[1749507521179,5.23404802,159.49,159.45,0.04051334]
[1749507521180,6.2681,159.47,159.45,0.04051334]
[1749507521676,6.2677,159.48,159.45,0.04051334]
[1749507521981,0.04530532,159.49,159.46,5.1887427]
[1749507522375,6.2677,159.48,159.46,5.1887427]
[1749507524583,6.2679,159.47,159.45,0.04051334]
[1749507525081,6.2678,159.48,159.45,6.30891334]
[1749507525280,6.2678,159.48,159.45,0.04051334]
[1749507525479,0.04530532,159.49,159.46,5.1887427]
[1749507525680,0.04530532,159.49,159.47,6.2675]
[1749507525880,0.04530532,159.49,159.48,5.1887427]
[1749507526782,6.31240532,159.49,159.48,5.1887427]
[1749507526984,0.04530532,159.49,159.48,5.1887427]
[1749507527183,0.04530532,159.49,159.48,11.4562427]
[1749507527583,0.04530532,159.49,159.48,5.1887427]
[1749507528884,0.04530532,159.49,159.48,11.4562427]
[1749507529682,0.04530532,159.49,159.48,5.1887427]
[1749507530185,0.04530532,159.49,159.48,11.4562427]
[1749507531085,0.04530532,159.49,159.48,5.1887427]
[1749507532584,0.04530532,159.49,159.46,40.4881]
[1749507532786,0.04530532,159.49,159.46,39.4087427]
[1749507532986,0.04530532,159.49,159.48,6.2675]
[1749507533281,0.04530532,159.49,159.48,11.4562427]
[1749507534880,6.2654,159.54,159.51,6.266]
[1749507535185,2.1747,159.57,159.53,5.1887427]
[1749507535485,39.4087427,159.63,159.52,39.4087427]
[1749507535790,0.04085065,159.59,159.56,0.04397636]
[1749507535989,6.2637,159.58,159.56,0.04397636]
[1749507536191,0.04085065,159.59,159.56,0.04397636]
[1749507536391,5.1887427,159.58,159.56,0.04397636]
[1749507536588,6.2639,159.57,159.56,0.04397636]
[1749507536990,4.3429,159.58,159.56,0.04397636]
[1749507537191,6.264,159.57,159.56,0.04397636]
[1749507538087,9.5316427,159.58,159.5,39.3887427]
[1749507538295,5.1887427,159.57,159.5,39.3887427]
[1749507538487,6.5758,159.58,159.5,39.3887427]
[1749507538787,6.265,159.55,159.52,5.1887427]
[1749507539092,6.2652,159.54,159.52,0.04461971]
[1749507540091,6.31021949,159.55,159.52,0.04461971]
[1749507540693,0.04541949,159.55,159.52,0.04461971]
[1749507541194,6.31021949,159.55,159.52,0.04461971]
[1749507541393,0.04541949,159.55,159.52,0.04461971]
[1749507541895,6.2655,159.53,159.52,0.04461971]
[1749507544492,6.2666,159.51,159.47,34.2]